bitfinex/quotes_ETHUSD_20250724
["timestamp","ask_amount","ask_price","bid_price","bid_amount"]
[1753366170080,2.74869578,3638.1,3636.3,0.55]
[1753366170081,3.0,3637.6,3636.3,0.55]
[1753366170265,10.33108669,3637.6,3636.4,0.9234]
[1753366170455,2.74969403,3636.8,3636.5,0.4828]
[1753366170653,2.74967468,3636.8,3636.1,3.27299703]
[1753366170952,4.579,3636.7,3636.1,0.04]
[1753366171157,4.579,3636.6,3636.1,0.04]
[1753366171673,2.75012375,3636.2,3636.1,0.04]
[1753366172396,2.75012375,3636.2,3635.8,0.001]
[1753366172397,2.75035066,3635.9,3635.8,0.001]
[1753366172589,2.75035066,3635.9,3635.1,0.04]
[1753366172590,2.75088028,3635.2,3635.1,0.04]
[1753366173289,2.75088028,3635.2,3635.1,0.02713168]
[1753366174460,4.575,3635.2,3635.1,0.02713168]
[1753366174660,0.20348316,3636.6,3635.1,0.02713168]
[1753366174890,3.0,3635.9,3635.1,0.02713168]
[1753366175202,2.75088028,3635.2,3635.1,0.02713168]
[1753366175381,7.32588028,3635.2,3635.1,0.02713168]
[1753366175759,10.32588028,3635.2,3635.1,0.02713168]
[1753366176262,7.32388028,3635.2,3635.1,0.02713168]
[1753366176759,7.32388028,3635.2,3634.1,0.04]
[1753366176760,2.75163722,3634.2,3634.1,0.04]
[1753366177161,4.572,3634.2,3634.1,0.9634]
[1753366177395,14.7165,3635.2,3634.1,0.9634]
[1753366177396,4.571,3634.3,3634.1,0.9634]
[1753366177609,3.0,3634.2,3634.1,0.04]
[1753366178078,4.57,3634.7,3634.3,2.75150923]
[1753366178262,3.0,3634.6,3634.4,0.4828]
[1753366178481,3.0,3634.6,3634.1,0.04]
[1753366178676,3.0,3634.6,3634.2,0.9234]
[1753366178967,7.569,3634.5,3634.3,0.4828]
[1753366179164,0.1376,3634.2,3634.1,0.04]
[1753366179403,5.88923722,3634.2,3634.1,0.04]
[1753366180119,0.1376,3634.2,3634.1,3.71511294]
[1753366180408,0.1376,3634.7,3634.4,0.55]
[1753366180567,4.564,3635.7,3635.3,0.8148]
[1753366180759,4.564,3635.7,3634.7,0.7677]
[1753366180760,2.88832894,3635.4,3634.7,0.7677]
[1753366180959,0.1376,3634.9,3634.8,0.9906]
[1753366181164,0.1376,3635.1,3634.8,0.9906]
[1753366181407,4.564,3635.7,3634.7,0.7677]
[1753366181408,2.750765,3635.4,3634.9,0.9234]
[1753366181590,0.1376,3635.1,3634.7,0.7677]
[1753366181900,4.561,3635.5,3634.9,0.4828]
[1753366182208,2.75011248,3636.3,3635.0,0.4406]
[1753366182510,0.1376,3635.1,3635.0,3.19163163]
[1753366182698,0.1376,3635.1,3635.0,3.74163163]
[1753366182901,0.1376,3635.3,3635.2,2.75088028]
[1753366183075,0.1376,3635.3,3635.2,0.9234]
[1753366183279,0.1376,3635.3,3634.7,1.3459]
[1753366183609,0.1376,3634.8,3634.3,0.4828]
[1753366183809,2.75125313,3634.8,3634.4,0.9234]
[1753366183972,0.1376,3634.3,3633.8,0.1376]
[1753366184512,0.1376,3634.3,3634.1,0.041]
[1753366184513,2.75163722,3634.2,3634.1,0.041]
[1753366184817,5.75163722,3634.2,3634.1,0.041]
[1753366185005,10.31263722,3634.2,3634.1,0.041]
[1753366186203,5.75163722,3634.2,3634.1,0.041]
[1753366186393,10.31263722,3634.2,3634.1,0.041]
[1753366186609,10.31063722,3634.2,3634.1,0.041]
[1753366186912,10.30963722,3634.2,3634.1,0.041]
[1753366187476,14.5,3635.5,3634.1,0.041]
[1753366187682,2.75163722,3634.2,3634.1,0.041]
[1753366187883,10.30763722,3634.2,3634.1,0.041]
[1753366188606,5.75163722,3634.2,3634.1,0.041]
[1753366188969,10.30463722,3634.2,3634.1,0.041]
[1753366189612,10.30463722,3634.2,3634.1,4e-08]
[1753366190174,54.80463722,3634.2,3634.1,4e-08]
[1753366191299,54.79663722,3634.2,3634.1,4e-08]
[1753366191597,50.25163722,3634.2,3634.1,4e-08]
[1753366191905,54.79563722,3634.2,3634.1,4e-08]
[1753366192108,50.25163722,3634.2,3634.1,4e-08]
[1753366192300,54.79563722,3634.2,3634.1,4e-08]
[1753366193297,2.75237949,3633.3,3633.1,0.0295767]
[1753366193501,2.7512266,3634.8,3633.5,0.4828]
[1753366193816,2.75186777,3633.9,3633.5,0.4828]
[1753366194020,4.537,3633.8,3633.2,0.8101]
[1753366194222,4.537,3633.7,3633.2,0.8101]
[1753366194379,2.75239458,3633.2,3633.1,0.0295767]
[1753366194585,7.28839458,3633.2,3633.1,0.0295767]
[1753366194842,2.75239458,3633.2,3633.1,0.0295767]
[1753366194996,7.28739458,3633.2,3633.1,0.0295767]
[1753366195326,4.534,3633.2,3633.1,0.5123767]
[1753366195529,4.533,3633.2,3633.1,0.5123767]
[1753366195687,4.533,3633.2,3633.1,0.9689767]
[1753366196309,2.75155334,3634.4,3633.1,0.9689767]
[1753366196534,17.25105103,3635.0,3633.1,0.9689767]
[1753366196535,2.75231882,3633.3,3633.2,0.4828]
[1753366196888,7.28327324,3633.4,3633.2,0.4828]
[1753366197126,2.75231882,3633.3,3633.2,0.9394]
[1753366197435,7.28326276,3633.4,3633.2,0.9394]
[1753366197603,0.1376,3633.3,3633.2,0.4828]
[1753366197925,0.1376,3633.3,3633.2,0.9394]
[1753366198085,0.1376,3633.3,3633.2,1.4894]
[1753366198286,0.2165,3634.7,3633.2,1.4894]
[1753366198287,0.1376,3633.5,3633.4,0.8238]
[1753366198516,5.75239458,3633.2,3633.1,0.0295767]
[1753366198900,3.0,3633.2,3633.1,0.0295767]
[1753366199091,4.53,3633.6,3633.1,0.4979767]
[1753366199292,3.0,3633.5,3633.2,0.925]
[1753366199528,4.53,3633.5,3633.3,0.925]
[1753366199738,0.2165,3634.6,3633.1,0.0295767]
[1753366199739,0.2165,3634.6,3633.4,0.925]
[1753366199951,2.75192577,3633.9,3633.5,1.7143]
[1753366200148,4.529,3634.1,3633.1,0.7969767]
[1753366200312,3.0,3633.9,3633.1,0.7969767]
[1753366200496,2.75239458,3633.2,3633.1,0.0295767]
[1753366200846,0.2165,3633.7,3633.1,0.0295767]
[1753366201141,2.75239458,3633.2,3633.1,0.0295767]
[1753366201933,5.75239458,3633.2,3633.1,0.0295767]
[1753366202157,10.27739458,3633.2,3633.1,0.0295767]
[1753366202358,5.75277341,3632.7,3632.1,0.04]
[1753366202794,3.0,3632.7,3632.6,0.4694]
[1753366202992,2.75265422,3632.9,3632.6,0.926]
[1753366203204,5.75239458,3633.2,3632.7,0.4684]
[1753366203496,5.75239458,3633.2,3632.6,0.001]
[1753366203497,2.75300077,3632.4,3632.3,0.4684]
[1753366203737,0.008381,3632.6,3632.3,0.925]
[1753366204039,0.008381,3632.6,3632.1,0.04]
[1753366204040,0.008381,3632.6,3632.4,0.925]
[1753366204222,0.008381,3632.6,3632.5,1.475]
[1753366204867,0.008381,3632.6,3632.5,0.925]
[1753366204999,2.75315235,3632.2,3632.1,0.04]
[1753366205198,2.75351786,3631.8,3631.2,0.4684]
[1753366205537,2.75351786,3631.8,3631.1,0.4966]
[1753366205538,5.75391055,3631.2,3631.1,0.04]
[1753366205694,10.28291055,3631.2,3631.1,0.04]
[1753366206943,5.97041055,3631.2,3631.1,1e-08]
[1753366207231,40.49841055,3631.2,3631.1,1e-08]
[1753366207536,3.0,3631.2,3631.1,1e-08]
[1753366207827,0.008381,3632.6,3631.3,0.8219]
[1753366208032,0.008381,3632.6,3631.5,0.55]
[1753366208193,0.008381,3632.6,3631.7,0.55]
[1753366208397,0.008381,3632.6,3631.9,0.55]
[1753366208654,0.145981,3632.6,3632.3,2.75302798]
[1753366208839,0.008381,3632.6,3632.3,0.55]
[1753366209143,0.1376,3632.4,3632.3,3.30307656]
[1753366209495,0.2165,3633.7,3632.3,1.0184]
[1753366209695,0.1376,3633.0,3632.7,0.55]
[1753366209917,0.04,3633.9,3633.2,0.55]
[1753366210123,0.04,3633.9,3633.6,0.55]
[1753366210124,0.1376,3633.8,3633.6,0.55]
[1753366210322,0.1376,3633.8,3633.3,0.925]
[1753366210323,0.1376,3633.8,3633.3,0.1376]
[1753366210561,0.1376,3633.4,3633.0,0.55]
[1753366210857,0.1376,3633.0,3632.9,4.05321676]
[1753366211059,0.04,3633.9,3633.3,2.75228506]
[1753366211358,0.04,3633.9,3633.1,0.55]
[1753366211569,0.1376,3633.6,3633.4,0.55]
[1753366211771,0.04,3633.9,3633.6,3.30206155]
[1753366211920,0.1376,3633.7,3633.6,0.55]
[1753366212261,0.04,3633.9,3633.8,3.30194011]
[1753366212751,0.04,3633.9,3633.8,4.22694011]
[1753366213134,0.04,3633.9,3633.8,0.925]
[1753366213334,0.04,3633.9,3633.8,1.475]
[1753366213677,0.04,3633.9,3633.8,0.925]
[1753366214160,0.04,3633.9,3633.8,4.22694011]
[1753366214656,0.04,3633.9,3633.8,0.4684]
[1753366214859,0.1776,3633.9,3633.8,0.4684]
[1753366215079,0.1776,3633.9,3633.8,1.475]
[1753366215256,0.04,3633.9,3633.8,1.475]
[1753366215776,0.04,3633.9,3633.8,1.0184]
[1753366215777,0.1776,3633.9,3633.8,1.0184]
[1753366216477,2.92946438,3633.9,3633.8,1.0184]
[1753366216679,2.75194011,3633.8,3633.7,0.55]
[1753366216977,2.75194011,3633.8,3633.7,1.0184]
[1753366216978,0.1376,3633.8,3633.7,1.0184]
[1753366217285,2.75244825,3633.2,3632.8,1.6936]
[1753366217490,0.1376,3633.8,3632.8,0.7686]
[1753366217783,0.1376,3633.2,3633.1,3.30244911]
[1753366217981,0.04,3633.9,3633.2,0.55]
[1753366218279,2.88977512,3633.5,3633.4,0.55]
[1753366218452,2.88977512,3633.5,3633.4,1.0184]
[1753366218453,0.1376,3633.5,3633.4,1.0184]
[1753366218664,0.1376,3633.5,3633.4,1.475]
[1753366218855,0.1376,3633.5,3633.4,0.4684]
[1753366218856,2.88976733,3633.5,3633.4,0.4684]
[1753366219203,0.1376,3633.5,3632.6,6.81013611]
[1753366219504,0.1376,3633.5,3632.6,6.34173611]
[1753366219505,0.1376,3632.7,3632.6,6.34173611]
[1753366219850,4.6,3633.8,3632.7,0.55]
[1753366220044,2.75259431,3633.0,3632.9,0.55]
[1753366220460,2.89019431,3633.0,3632.9,0.55]
[1753366220781,2.89019431,3633.0,3632.7,6.34173611]
[1753366220782,2.75269764,3632.8,3632.7,6.34173611]
[1753366221150,2.75284919,3632.6,3632.5,6.34173611]
[1753366221541,2.89044919,3632.6,3632.5,6.34173611]
[1753366221759,2.89044919,3632.6,3632.5,7.26223611]
[1753366221760,0.1376,3632.6,3632.5,7.26223611]
[1753366222261,2.89044919,3632.6,3632.5,6.34173611]
[1753366222483,0.1376,3632.6,3632.5,1.0184]
[1753366222646,2.89044919,3632.6,3632.3,0.001]
[1753366222848,3.10710077,3632.4,3632.3,0.001]
[1753366223180,6.10710077,3632.4,3632.3,1e-08]
[1753366223355,10.70910077,3632.4,3632.3,1e-08]
[1753366224060,10.84670077,3632.4,3632.3,1e-08]
[1753366224244,6.10710077,3632.4,3632.3,1e-08]
[1753366224444,0.1376,3632.4,3632.3,1e-08]
[1753366224782,0.1376,3632.4,3632.3,1.01840001]
[1753366224985,2.89060077,3632.4,3632.3,1.01840001]
[1753366225190,2.89060077,3632.4,3632.3,0.55000001]
[1753366225387,0.1376,3632.4,3632.3,0.46840001]
[1753366225585,0.1376,3632.4,3632.3,1.47050001]
[1753366226087,2.75238106,3633.3,3632.5,2.75292498]
[1753366226288,0.1376,3632.7,3632.6,0.4521]
[1753366226448,4.597,3633.4,3632.6,0.4521]
[1753366226449,7.34930272,3633.4,3632.7,2.75276902]
[1753366226653,7.34930272,3633.4,3632.6,1.4705]
[1753366226654,2.75240595,3633.2,3632.8,1.0184]
[1753366226854,2.75262187,3632.9,3632.8,1.0184]
[1753366227054,0.1376,3632.9,3632.8,1.4705]
[1753366227387,0.04,3633.9,3632.8,1.4705]
[1753366227689,0.04,3633.9,3633.6,2.75203894]
[1753366227851,0.04,3633.9,3633.4,0.55]
[1753366227852,0.04,3633.9,3633.5,3.30214357]
[1753366228055,0.1776,3633.9,3633.7,0.55]
[1753366228274,2.75194011,3633.8,3633.7,1.0184]
[1753366228487,0.1376,3633.8,3633.7,1.0184]
[1753366228785,0.1396,3633.8,3633.7,1.4841]
[1753366229548,0.1396,3633.8,3633.6,0.7936]
[1753366229549,2.89154011,3633.8,3633.6,0.7936]
[1753366229892,0.1396,3633.8,3633.7,0.9341]
[1753366230090,0.002,3633.8,3633.7,4.23611585]
[1753366230288,0.002,3633.8,3633.7,5.06051585]
[1753366230587,0.002,3633.8,3633.7,2.3085]
[1753366230989,0.002,3633.8,3633.7,1.8564]
[1753366231193,2.75394011,3633.8,3633.7,1.032]
[1753366231553,0.002,3633.8,3633.7,1.032]
[1753366232356,0.002,3633.8,3633.3,5.071]
[1753366232589,0.002,3633.8,3633.6,0.55]
[1753366233067,0.002,3633.8,3633.5,0.482]
[1753366233068,2.75095003,3635.2,3633.8,0.55]
[1753366233297,2.75127765,3634.7,3634.0,3.30172315]
[1753366233496,0.2165,3635.4,3634.2,0.55]
[1753366233497,2.75079325,3635.4,3634.2,0.55]
[1753366233665,3.0,3635.7,3634.5,3.30141009]
[1753366233865,2.75063169,3635.6,3634.5,7.88941009]
[1753366234095,0.2165,3635.8,3634.5,8.82351009]
[1753366234483,2.75089791,3635.2,3634.5,6.0721]
[1753366234684,2.96699192,3635.8,3634.5,1.4841]
[1753366234685,0.2165,3635.8,3634.5,1.4841]
[1753366234878,0.2165,3635.8,3634.5,5.62]
[1753366234879,2.7512602,3634.7,3634.5,5.62]
[1753366235283,2.7925143,3635.7,3634.5,1.032]
[1753366235482,2.75333439,3634.6,3634.5,0.55]
[1753366236510,2.75333439,3634.6,3634.0,0.9341]
[1753366236511,0.002,3634.6,3634.0,5.063]
[1753366236811,0.002,3634.6,3634.0,0.482]
[1753366236984,0.002,3634.6,3634.2,0.55]
[1753366237387,0.002,3634.6,3634.3,0.9341]
[1753366237575,0.002,3634.6,3634.4,0.55]
[1753366237772,0.002,3634.6,3634.5,2.75141009]
[1753366237977,0.002,3634.6,3634.5,0.55]
[1753366238209,0.002,3634.6,3634.5,2.2616]
[1753366239317,2.75333439,3634.6,3634.5,1.8095]
[1753366239613,0.002,3634.6,3634.5,0.55]
[1753366239812,0.002,3634.6,3634.5,1.4841]
[1753366241520,0.002,3634.6,3634.5,5.05951009]
[1753366241722,0.002,3634.6,3634.5,5.19711009]
[1753366243418,0.002,3634.6,3634.5,9.76811009]
[1753366245500,0.04,3634.9,3634.8,7.134083]
[1753366245703,1e-08,3635.1,3635.0,4.13393163]
[1753366245941,1e-08,3635.1,3635.0,8.86104194]
[1753366246121,1e-08,3635.1,3635.0,9.77463163]
[1753366246322,1e-08,3635.1,3635.0,5.20563163]
[1753366246535,0.042,3635.9,3635.8,2.75042631]
[1753366246740,0.002,3636.1,3636.0,3.30027502]
[1753366247142,0.002,3636.2,3636.1,3.30019938]
[1753366247338,0.002,3636.2,3636.1,8.80029938]
[1753366247541,0.002,3636.2,3636.1,9.60359938]
[1753366248130,0.002,3636.6,3636.1,9.60359938]
[1753366248131,0.002,3636.6,3636.5,4.10319687]
[1753366248343,0.002,3636.6,3636.5,8.83329583]
[1753366248523,0.002,3636.6,3636.5,12.73989687]
[1753366248723,0.002,3636.6,3636.5,12.25789687]
[1753366249051,0.002,3636.6,3636.5,6.992]
[1753366249361,0.002,3636.6,3636.5,7.06019016]
[1753366249662,0.002,3636.6,3636.5,9.81008703]
[1753366249809,0.002,3636.6,3636.5,9.81108703]
[1753366250422,0.002,3636.6,3636.5,7.06119016]
[1753366250629,0.002,3636.6,3636.5,9.81108703]
[1753366251454,0.002,3636.6,3636.5,9.80908703]
[1753366251629,0.002,3636.6,3636.5,12.80908703]
[1753366252521,0.04,3636.9,3636.8,4.09187003]
[1753366252720,0.04,3636.9,3636.8,11.81832781]
[1753366252969,0.04,3636.9,3636.8,12.73257003]
[1753366253454,0.04,3636.9,3636.8,8.17357003]
[1753366253655,0.002,3637.7,3637.6,4.12766531]
[1753366253954,0.002,3637.7,3637.6,8.82026531]
[1753366254365,0.002,3637.7,3637.6,9.76436531]
[1753366254675,0.002,3637.7,3636.9,3.6936851]
[1753366254676,2.74906531,3637.6,3636.9,3.6936851]
[1753366254877,0.1396,3637.7,3637.0,4.71809518]
[1753366255058,0.002,3637.7,3637.6,2.74906531]
[1753366255261,0.002,3637.7,3637.6,7.85306531]
[1753366255434,0.002,3637.7,3637.6,8.66146531]
[1753366255783,0.002,3637.7,3637.6,2.4401]
[1753366256078,0.002,3637.7,3637.6,5.105]
[1753366256792,0.002,3637.7,3637.3,0.1376]
[1753366256793,2.74920224,3637.5,3637.3,0.1376]
[1753366257086,0.1376,3637.5,3637.4,4.552]
[1753366257747,0.1376,3637.5,3637.4,5.102]
[1753366257925,0.002,3637.7,3637.5,0.55]
[1753366258274,0.002,3637.7,3637.6,5.098]
[1753366258626,0.002,3637.7,3637.6,8.79116531]
[1753366258977,0.002,3637.7,3637.6,9.70396531]
[1753366260283,0.002,3637.7,3637.6,5.095]
[1753366260458,0.002,3637.7,3636.7,1.2217]
[1753366260783,0.3025,3637.6,3636.6,6.883]
[1753366261064,2.74946643,3637.1,3636.7,4.55]
[1753366261266,2.74954087,3637.0,3636.7,4.55]
[1753366261469,0.2185,3637.6,3636.3,0.763]
[1753366261659,2.75012375,3636.2,3636.1,0.001]
[1753366261829,2.83412375,3636.2,3636.1,0.001]
[1753366262165,2.97362375,3636.2,3636.1,0.001]
[1753366262545,5.97362375,3636.2,3636.1,0.001]
[1753366262863,5.97362375,3636.2,3636.1,1e-08]
[1753366262864,43.16034777,3636.2,3636.1,1e-08]
[1753366263737,43.16034777,3636.2,3634.6,0.001]
[1753366263738,2.7512587,3634.7,3634.6,0.001]
[1753366263942,3.0,3635.3,3634.6,0.001]
[1753366264260,3.0,3635.4,3634.6,0.001]
[1753366264430,2.75100969,3635.1,3634.6,0.001]
[1753366264630,2.7512587,3634.7,3634.6,0.001]
[1753366264837,2.9697587,3634.7,3634.6,0.001]
[1753366265129,0.2185,3634.7,3634.6,0.001]
[1753366265549,2.9697587,3634.7,3634.6,0.001]
[1753366265759,3.0,3635.0,3634.6,0.001]
[1753366265960,0.2185,3635.2,3634.6,0.001]
[1753366266378,0.2185,3635.2,3634.6,2.75231707]
[1753366266782,2.75097741,3635.1,3634.6,0.001]
[1753366266983,2.75095595,3635.1,3634.6,0.001]
[1753366267147,0.2185,3635.2,3634.6,0.001]
[1753366267347,2.96940175,3635.2,3634.6,0.001]
[1753366267562,0.2185,3635.2,3634.6,0.001]
[1753366268272,2.75100738,3635.1,3634.6,0.001]
[1753366268583,2.75074076,3635.4,3634.7,2.75120357]
[1753366268780,0.2185,3635.6,3634.6,0.001]
[1753366269080,0.2185,3635.6,3634.7,3.2493587]
[1753366269578,0.2185,3635.6,3634.6,0.001]
[1753366269779,2.96907853,3635.6,3634.7,2.7512587]
[1753366269980,2.75078681,3635.4,3634.7,2.75125331]
[1753366270283,2.75078681,3635.4,3634.6,0.001]
[1753366270284,0.1376,3634.8,3634.6,0.551]
[1753366270783,0.1376,3634.8,3634.7,3.3012587]
[1753366271485,0.2185,3636.4,3635.4,2.75072508]
[1753366271689,0.2185,3636.4,3634.7,4.2614587]
[1753366271690,0.1376,3635.5,3635.2,0.4981]
[1753366271984,0.1376,3635.5,3635.4,3.30072894]
[1753366272188,0.1376,3635.5,3635.4,0.55]
[1753366272350,0.1376,3635.5,3635.4,5.093]
[1753366272547,0.1376,3635.5,3635.1,4.541]
[1753366272849,0.1376,3635.2,3635.1,4.541]
[1753366273467,0.1376,3635.2,3635.1,5.0391]
[1753366273701,0.1376,3635.2,3635.1,7.79005595]
[1753366273860,2.75028207,3636.0,3635.2,0.55]
[1753366274063,0.002,3636.2,3635.7,2.75045491]
[1753366274257,0.002,3636.2,3635.8,8.80061306]
[1753366274453,0.1376,3635.9,3635.8,5.5881]
[1753366274985,0.1376,3635.9,3635.2,0.1376]
[1753366274986,2.88795498,3635.9,3635.0,0.55]
[1753366275189,0.002,3636.2,3635.1,4.538]
[1753366275190,0.1376,3635.3,3635.1,4.538]
[1753366275553,0.1376,3635.3,3635.1,4.539]
[1753366275953,0.1376,3635.3,3634.7,0.55]
[1753366276174,0.1376,3634.9,3634.8,4.537]
[1753366276354,0.1376,3634.9,3634.6,0.001]
[1753366276554,0.2185,3635.5,3634.6,0.001]
[1753366276555,0.084,3635.4,3634.6,0.001]
[1753366276757,3.1073587,3634.7,3634.6,0.001]
[1753366277776,3.1913587,3634.7,3634.6,0.001]
[1753366277990,3.3308587,3634.7,3634.6,0.001]
[1753366278295,2.75163722,3634.2,3632.7,3.57236135]
[1753366278481,3.10773722,3634.2,3632.8,4.54]
[1753366278682,3.10773722,3634.2,3632.9,2.75261705]
[1753366278683,3.33123722,3634.2,3632.9,2.75261705]
[1753366278870,3.33123722,3634.2,3632.8,4.54]
[1753366278871,6.33123722,3634.2,3632.8,3.45217123]
[1753366279374,6.19173722,3634.2,3632.8,1.16159452]
[1753366279572,6.33123722,3634.2,3632.8,1.16159452]
[1753366279771,10.64373722,3634.2,3633.2,0.4981]
[1753366280117,10.64373722,3634.2,3633.2,3.71259318]
[1753366280301,2.88923722,3634.2,3633.5,0.4981]
[1753366280961,0.1376,3634.2,3634.1,0.5381]
[1753366281158,0.1376,3634.2,3634.1,1.0113]
[1753366281606,3.0,3634.6,3634.1,1.5613]
[1753366281821,0.1376,3634.3,3634.2,1.0481]
[1753366282107,7.28580461,3635.3,3634.4,0.55]
[1753366282279,0.1376,3634.9,3634.7,0.55]
[1753366282487,0.1376,3635.2,3635.1,0.55]
[1753366282909,2.75096313,3635.1,3634.7,4.535]
[1753366283111,0.1376,3634.8,3634.7,5.085]
[1753366283594,2.8887886,3634.8,3634.3,0.55]
[1753366283795,2.8887886,3634.8,3634.4,0.4981]
[1753366283997,0.1376,3634.5,3634.4,1.0481]
[1753366284393,2.88901009,3634.5,3634.4,0.55]
[1753366284600,0.1376,3634.5,3634.2,0.55]
[1753366284797,2.75118781,3634.8,3634.1,0.04]
[1753366284798,2.88923722,3634.2,3634.1,0.04]
[1753366284968,0.1376,3634.2,3634.1,0.04]
[1753366285174,0.1376,3634.2,3634.1,1.0113]
[1753366285390,0.1376,3634.4,3634.2,0.55]
[1753366285590,0.1376,3634.4,3634.3,1.5213]
[1753366285788,2.8890858,3634.4,3634.1,0.04]
[1753366286115,0.1376,3634.4,3634.1,0.04]
[1753366286280,2.88923722,3634.2,3634.1,0.04]
[1753366287409,2.75140246,3634.6,3634.2,0.55]
[1753366287626,0.1376,3634.4,3634.3,4.27286151]
[1753366287813,0.084,3636.0,3634.9,0.55]
[1753366287814,7.49504726,3635.7,3634.9,0.55]
[1753366288116,2.75019938,3636.1,3635.3,2.75074715]
[1753366288276,0.1376,3635.5,3635.4,3.79882101]
[1753366288472,0.1376,3635.8,3635.7,0.55]
[1753366288712,0.1376,3635.8,3635.7,1.0011]
[1753366288924,0.1376,3635.8,3635.2,4.526]
[1753366289126,2.75055104,3635.7,3635.1,0.55]
[1753366289329,0.1376,3635.3,3635.2,0.55]
[1753366289525,0.66632298,3636.2,3635.3,0.55]
[1753366289700,0.1376,3635.6,3635.3,5.078]
[1753366289906,0.1376,3635.6,3635.5,0.55]
[1753366290099,2.75217953,3636.2,3635.5,3.30060609]
[1753366290301,0.1376,3635.8,3635.7,0.55]
[1753366290504,0.1376,3635.8,3635.7,0.4732]
[1753366290828,0.1376,3635.8,3635.4,0.55]
[1753366290829,2.88802631,3635.8,3635.4,0.55]
[1753366291028,0.40881287,3635.9,3635.5,0.4511]
[1753366291229,0.40881287,3635.9,3635.4,0.4732]
[1753366291230,0.002,3636.2,3635.8,0.55]
[1753366291427,0.002,3636.2,3636.1,3.30019938]
[1753366291845,0.002,3636.2,3636.1,4.22449938]
[1753366292050,0.04,3636.9,3636.8,4.10337003]
[1753366292332,0.04,3636.9,3636.8,8.63237003]
[1753366292646,0.002,3637.7,3637.6,3.29906531]
[1753366292814,0.002,3637.7,3637.6,7.83006531]
[1753366293130,0.25550681,3638.1,3637.9,0.55]
[1753366293291,0.25550681,3638.4,3638.3,2.7485364]
[1753366293496,1.01736407,3638.9,3638.4,3.29846086]
[1753366293497,0.25550681,3638.5,3638.4,3.29846086]
[1753366293791,0.8857904,3638.8,3638.4,3.29846086]
[1753366293792,0.73248434,3638.6,3638.5,0.55]
[1753366294119,0.98042157,3638.8,3638.7,3.29823425]
[1753366294434,0.04,3638.9,3638.8,0.55]
[1753366294598,1.51123402,3638.9,3638.8,6.0103]
[1753366294789,1.51123402,3638.9,3638.8,6.21987737]
[1753366294993,0.04,3638.9,3638.8,1.68387737]
[1753366295191,0.04,3638.9,3638.8,8.9630361]
[1753366295192,1.02019577,3638.9,3638.8,8.9630361]
[1753366295532,0.04,3638.9,3638.8,9.7390361]
[1753366296027,0.04,3638.9,3638.8,2.45987737]
[1753366296328,0.04,3638.9,3638.8,9.7390361]
[1753366296558,0.04,3638.9,3638.8,6.99087737]
[1753366296857,1.02019577,3638.9,3638.8,6.44187737]
[1753366297061,0.04,3638.9,3638.8,1.90987737]
[1753366297225,1.68395081,3638.9,3638.8,1.7003]
[1753366297421,0.04,3638.9,3638.8,6.2343]
[1753366297626,0.77479628,3638.9,3638.8,9.19207739]
[1753366298023,0.97973077,3639.0,3638.9,0.55]
[1753366298323,0.002,3639.2,3638.9,0.55]
[1753366298324,0.98173077,3639.2,3638.9,1.4743]
[1753366298549,0.14643077,3639.3,3639.1,4.07573218]
[1753366298748,1.47123402,3639.7,3639.6,3.29755467]
[1753366298936,0.04,3639.9,3639.7,3.52527918]
[1753366298937,1.47123402,3639.8,3639.7,3.52527918]
[1753366299149,1.51123402,3639.9,3639.7,1.7021]
[1753366299336,0.04,3639.9,3639.7,0.7778]
[1753366299533,0.04,3639.9,3639.8,2.91247773]
[1753366299861,0.04,3639.9,3639.8,1.0619]
[1753366300201,1.50875435,3639.9,3639.8,3.83677773]
[1753366300478,0.04,3639.9,3639.8,3.83677773]
[1753366300967,1.10156576,3640.0,3639.9,3.29732822]
[1753366301164,0.66380562,3640.4,3640.3,3.51852634]
[1753366301320,1.96164537,3640.7,3640.5,2.74687542]
[1753366301521,0.04,3640.9,3640.6,0.9243]
[1753366301824,0.04,3640.9,3640.7,4.53]
[1753366302162,0.04,3640.9,3640.8,0.1376]
[1753366302325,0.04,3640.9,3640.8,5.1177]
[1753366302728,0.04,3640.9,3640.8,0.5887]
[1753366303060,2.00164537,3640.9,3640.8,4.6646]
[1753366303260,0.04,3640.9,3640.8,8.33554908]
[1753366303833,0.04,3640.9,3640.8,5.5889]
[1753366304040,0.04,3640.9,3640.8,5.1127]
[1753366304737,0.04,3640.9,3640.8,5.5859]
[1753366304943,0.04,3640.9,3640.8,5.5849]
[1753366305379,0.04,3640.9,3640.8,5.5849]
[1753366305578,0.04,3640.9,3640.8,9.31168719]
[1753366305953,0.04,3640.9,3640.8,2.04203811]
[1753366306155,0.04,3640.9,3640.8,6.56203811]
[1753366306354,0.04,3640.9,3640.8,6.56303811]
[1753366306900,0.04,3640.9,3639.4,0.4511]
[1753366307098,0.04,3640.9,3639.5,0.4511]
[1753366307099,3.0,3640.7,3639.5,0.4511]
[1753366307252,3.0,3640.4,3639.5,0.4511]
[1753366307584,3.0,3640.3,3639.6,0.02747554]
[1753366307778,2.74718854,3640.1,3639.6,0.02747554]
[1753366307985,0.66119432,3640.2,3639.6,0.02747554]
[1753366308142,0.55,3640.3,3639.4,4.535]
[1753366308347,0.7644,3640.2,3639.5,4.534]
[1753366308546,0.7644,3640.2,3639.3,0.4511]
[1753366308746,0.7644,3640.2,3639.4,4.535]
[1753366309071,2.74755163,3639.7,3639.4,4.535]